bitfinex-derivatives/quotes_SOLF0:USTF0_20250924
["timestamp","ask_amount","ask_price","bid_price","bid_amount"]
[1758692368832,22.23399501,209.48,209.45,7.94]
[1758692369131,7.65,209.47,209.44,126.42]
[1758692370829,22.23399501,209.48,209.45,7.94]
[1758692374345,22.23399501,209.48,209.46,118.46]
[1758692377541,14.58399501,209.48,209.46,118.46]
[1758692377746,14.58399501,209.48,209.46,126.4]
[1758692381746,14.58399501,209.48,209.46,118.46]
[1758692381950,22.23399501,209.48,209.46,118.46]
[1758692382955,22.23399501,209.48,209.4,8.25728552]
[1758692383147,14.58399501,209.48,209.43,7.94]
[1758692383544,14.58399501,209.48,209.42,1.39103567]
[1758692383754,14.58399501,209.48,209.43,7.94]
[1758692383947,14.58399501,209.48,209.42,1.39103567]
[1758692384149,14.58399501,209.48,209.43,7.94]
[1758692384650,14.58399501,209.48,209.42,1.39103567]
[1758692385354,14.58399501,209.48,209.43,7.94]
[1758692385548,14.58399501,209.48,209.42,1.39103567]
[1758692386353,7.65,209.47,209.44,7.94]
[1758692386552,7.65,209.47,209.43,118.44]
[1758692386855,22.23399501,209.48,209.44,7.94]
[1758692387248,22.23399501,209.48,209.43,118.44]
[1758692387452,22.23399501,209.48,209.44,7.94]
[1758692387649,22.23399501,209.48,209.43,118.44]
[1758692387844,22.23399501,209.48,209.44,7.94]
[1758692388052,22.23399501,209.48,209.43,118.44]
[1758692388451,22.23399501,209.48,209.44,7.94]
[1758692388846,7.65,209.47,209.41,8.25698552]
[1758692389061,7.65,209.47,209.42,118.42]
[1758692389358,7.65,209.47,209.43,126.36]
[1758692389754,14.58399501,209.48,209.43,126.36]
[1758692390060,7.65,209.47,209.43,126.36]
[1758692390460,14.58399501,209.48,209.43,126.36]
[1758692390653,14.58399501,209.48,209.43,118.42]
[1758692390953,13.77152958,209.48,209.47,7.94]
[1758692391152,13.77152958,209.48,209.47,126.36]
[1758692397254,13.77152958,209.48,209.47,7.94]
[1758692397456,13.77152958,209.48,209.47,126.34]
[1758692398260,13.77152958,209.48,209.47,127.73103567]
[1758692398558,7.34,209.59,209.51,8.73103567]
[1758692398759,7.34,209.59,209.52,118.4]
[1758692400361,11.6328,209.59,209.52,118.4]
[1758692400562,11.6328,209.59,209.53,7.34]
[1758692401063,9.66836058,209.62,209.55,1.39103567]
[1758692401255,23.32311694,209.66,209.58,7.34]
[1758692401461,7.34,209.63,209.52,7.34]
[1758692401653,7.34,209.63,209.54,7.34]
[1758692401858,7.34,209.61,209.54,7.34]
[1758692402066,1.39103567,209.6,209.55,23.2]
[1758692402460,7.34,209.59,209.55,30.54]
[1758692402663,1.39103567,209.6,209.55,30.54]
[1758692402858,4.2927,209.59,209.55,30.54]
[1758692403062,11.6327,209.59,209.55,30.54]
[1758692403565,1.39103567,209.57,209.48,7.34]
[1758692403764,1.39103567,209.55,209.49,27.76]
[1758692404362,8.73103567,209.56,209.49,27.76]
[1758692404766,1.39103567,209.54,209.49,27.76]
[1758692404960,4.294,209.53,209.5,76.74]
[1758692405161,1.39103567,209.51,209.43,7.34]
[1758692405367,1.39103567,209.49,209.44,118.38]
[1758692405562,5.37626058,209.58,209.45,7.34]
[1758692405758,8.73103567,209.56,209.45,8.73103567]
[1758692405963,7.34,209.53,209.45,7.34]
[1758692406368,7.34,209.53,209.45,8.73103567]
[1758692407069,7.34,209.53,209.45,7.34]
[1758692412469,7.34,209.53,209.45,11.6354]
[1758692412667,1.39103567,209.56,209.46,3.96078552]
[1758692412873,1.39103567,209.56,209.47,7.34]
[1758692413473,1.39103567,209.56,209.47,8.73103567]
[1758692413772,1.39103567,209.56,209.47,13.02613567]
[1758692413969,1.39103567,209.56,209.48,7.55]
[1758692414376,1.39103567,209.56,209.49,118.36]
[1758692416974,1.39103567,209.56,209.5,7.55]
[1758692417174,1.39103567,209.58,209.5,7.55]
[1758692417966,8.69103567,209.58,209.51,53.08]
[1758692418172,8.69103567,209.58,209.52,103.5]
[1758692419566,8.69103567,209.58,209.5,7.55]
[1758692419770,1.39103567,209.56,209.51,116.26]
[1758692419966,7.3,209.55,209.51,123.81]
[1758692420169,7.3,209.55,209.51,7.55]
[1758692420370,7.3,209.55,209.51,118.36]
[1758692420570,7.3,209.55,209.51,125.91]
[1758692421176,4.2924,209.6,209.52,7.55]
[1758692421477,7.3,209.56,209.52,7.55]
[1758692423277,11.5924,209.6,209.52,7.55]
[1758692423982,7.3,209.6,209.52,7.55]
[1758692424183,7.3,209.6,209.52,8.94103567]
[1758692424578,5.68303567,209.62,209.52,8.94103567]
[1758692425878,5.68303567,209.62,209.53,7.41]
[1758692427588,4.2924,209.61,209.54,118.34]
[1758692428285,1.39103567,209.62,209.55,7.41]
[1758692429789,5.68303567,209.62,209.55,7.41]
[1758692430183,1.39103567,209.58,209.5,7.41]
[1758692430380,1.39103567,209.58,209.52,7.41]
[1758692430584,7.68,209.56,209.52,7.41]
[1758692431688,9.07103567,209.56,209.52,7.41]
[1758692432388,7.68,209.56,209.48,7.41]
[1758692432592,4.2935,209.55,209.49,118.32]
[1758692433286,4.2935,209.55,209.48,7.41]
[1758692433592,4.2935,209.55,209.49,118.32]
[1758692435996,4.2935,209.55,209.49,125.73]
[1758692436894,7.68,209.56,209.49,7.41]
[1758692437088,7.68,209.56,209.5,51.12]
[1758692437289,4.294,209.53,209.5,51.12]
[1758692437493,4.294,209.53,209.45,7.41]
[1758692437494,7.68,209.53,209.45,7.41]
[1758692437795,7.68,209.53,209.46,101.02]
[1758692438800,7.68,209.56,209.47,7.41]
[1758692439294,4.2935,209.55,209.47,7.41]
[1758692439691,7.68,209.56,209.47,7.41]
[1758692440793,7.68,209.56,209.48,4.2947]
[1758692441097,7.68,209.56,209.49,7.41]
[1758692443898,4.2935,209.55,209.5,118.32]
[1758692444494,4.2938,209.54,209.5,118.32]
[1758692444702,7.68,209.53,209.5,118.32]
[1758692444997,4.2938,209.54,209.5,118.32]
[1758692445202,7.68,209.53,209.5,118.32]
[1758692445804,11.974,209.53,209.46,7.41]
[1758692446296,4.2943,209.51,209.45,118.3]
[1758692446497,7.68,209.51,209.45,118.3]
[1758692447100,4.2947,209.5,209.45,118.3]
[1758692447304,11.9747,209.5,209.46,7.41]
[1758692447894,11.9747,209.5,209.45,118.3]
[1758692448204,11.9747,209.5,209.46,7.41]
[1758692448800,11.9747,209.5,209.39,363.09234853]
[1758692448801,7.68,209.49,209.43,7.41]
[1758692448997,7.68,209.49,209.41,118.3]
[1758692449899,4.2953,209.46,209.42,7.41]
[1758692450099,4.2953,209.46,209.41,125.71]
[1758692450297,7.68,209.47,209.39,360.92]
[1758692450497,7.68,209.46,209.39,479.22]
[1758692450700,7.68,209.42,209.39,360.92]
[1758692451004,4.2961,209.43,209.39,486.63]
[1758692451207,11.9761,209.43,209.39,479.22]
[1758692451405,11.9761,209.43,209.4,7.41]
[1758692452002,4.2955,209.46,209.39,486.63]
[1758692452402,7.68,209.52,209.4,7.41]
[1758692453103,4.2943,209.51,209.4,7.41]
[1758692453311,7.68,209.5,209.4,7.41]
[1758692453611,8.05,209.49,209.41,118.32]
[1758692453809,8.05,209.49,209.42,118.32]
[1758692454205,4.2953,209.46,209.43,7.37]
[1758692457809,66.8174,209.46,209.39,360.92]
[1758692458006,8.05,209.45,209.38,118.32]
[1758692458607,8.05,209.42,209.38,125.69]
[1758692458812,4.2961,209.43,209.38,118.32]
[1758692459013,8.05,209.42,209.38,125.69]
[1758692459213,8.05,209.42,209.39,7.37]
[1758692460015,4.2961,209.43,209.39,7.37]
[1758692460614,12.3461,209.43,209.39,7.37]
[1758692460915,4.2961,209.43,209.38,118.32]
[1758692461113,4.2961,209.43,209.39,7.37]
[1758692461513,4.2955,209.46,209.39,7.37]
[1758692462517,8.05,209.47,209.39,7.37]
[1758692462721,8.05,209.47,209.4,118.32]
[1758692463010,4.2955,209.45,209.4,118.32]
[1758692463211,8.05,209.44,209.4,125.69]
[1758692463810,66.8164,209.46,209.37,7.37]
[1758692464018,8.05,209.45,209.38,48.92]
[1758692464819,8.05,209.42,209.36,7.37]
[1758692465019,8.05,209.42,209.38,7.37]
[1758692465219,74.8664,209.46,209.38,7.37]
[1758692465612,8.05,209.46,209.37,101.78]
[1758692465818,8.05,209.49,209.38,7.37]
[1758692466115,66.782,209.57,209.44,7.37]
[1758692466315,66.782,209.57,209.46,7.37]
[1758692466316,4.2938,209.54,209.46,7.37]
[1758692467322,4.2941,209.52,209.46,7.37]
[1758692467524,74.8265,209.59,209.46,2.17234853]
[1758692467718,74.8265,209.59,209.47,7.37]
[1758692467719,66.7794,209.58,209.47,7.37]
[1758692467922,4.2939,209.54,209.47,7.37]
[1758692468124,8.05,209.54,209.48,24.26]
[1758692468329,8.05,209.54,209.47,7.37]
[1758692468535,8.05,209.54,209.47,43.29]
[1758692469126,8.05,209.54,209.47,7.37]
[1758692469831,4.2945,209.5,209.47,7.37]
[1758692470034,12.3445,209.5,209.47,7.37]
[1758692470424,12.3445,209.5,209.4,4.2963]
[1758692470630,12.3445,209.5,209.41,73.49]
[1758692470631,4.295,209.48,209.41,73.49]
[1758692471030,4.295,209.48,209.42,7.37]
[1758692474035,4.2944,209.51,209.42,7.37]
[1758692475135,11.8138,209.54,209.43,7.76]
[1758692475537,7.52,209.54,209.44,96.22]
[1758692476235,7.52,209.54,209.45,7.76]
[1758692477334,74.2985,209.58,209.45,7.76]
[1758692478840,4.2937,209.54,209.45,7.76]
[1758692480143,4.2941,209.52,209.45,7.76]
[1758692480441,4.2941,209.52,209.46,118.28]
[1758692484043,4.2941,209.52,209.47,7.38]
[1758692484645,4.2941,209.52,209.46,118.28]
[1758692484940,4.2941,209.52,209.47,7.38]
[1758692485146,4.2941,209.52,209.46,118.28]
[1758692485636,4.2941,209.52,209.47,7.38]
[1758692485843,4.2941,209.52,209.46,118.28]
[1758692486036,4.2941,209.52,209.47,7.38]
[1758692486240,4.2941,209.52,209.46,118.28]
[1758692486446,4.2941,209.52,209.47,7.38]
[1758692486640,4.2941,209.52,209.46,118.28]
[1758692487048,7.52,209.55,209.47,7.38]
[1758692487049,11.8136,209.55,209.47,7.38]
[1758692487441,7.52,209.55,209.47,7.38]
[1758692488744,4.294,209.53,209.47,7.38]
[1758692490648,4.2935,209.55,209.47,7.38]
[1758692490848,74.8185,209.58,209.47,7.38]
[1758692491647,4.2938,209.54,209.47,7.38]
[1758692492644,4.2938,209.54,209.48,1.39025026]
[1758692495145,4.2932,209.56,209.49,7.38]
[1758692496245,4.2932,209.56,209.5,1.39025026]
[1758692501155,8.04,209.62,209.52,1.39025026]
[1758692501355,9.43025026,209.62,209.53,125.6]
[1758692502158,4.2928,209.59,209.53,125.6]
[1758692502452,1.39025026,209.6,209.54,118.2]
[1758692502950,74.8086,209.61,209.54,118.2]
[1758692503147,4.2932,209.57,209.54,118.2]
[1758692503347,4.2932,209.57,209.54,125.58]
[1758692504249,12.3332,209.57,209.54,125.58]
[1758692505250,4.2934,209.56,209.54,118.2]
[1758692505554,8.04,209.6,209.54,118.18]
[1758692505859,4.293,209.58,209.54,118.18]
[1758692506159,8.04,209.57,209.54,125.56]
[1758692507853,4.2925,209.6,209.54,125.56]
[1758692508957,4.2928,209.59,209.54,118.18]
[1758692509156,12.3328,209.59,209.55,7.38]
[1758692509359,66.7626,209.63,209.54,118.18]
[1758692509360,9.43025026,209.6,209.54,118.18]
[1758692510759,4.2932,209.57,209.54,118.18]
[1758692510959,4.2932,209.57,209.54,125.56]
[1758692511660,4.2932,209.57,209.54,118.18]
[1758692511958,4.2932,209.57,209.54,125.56]
[1758692512155,4.2932,209.57,209.55,7.38]
[1758692514358,4.2936,209.55,209.5,7.44]
[1758692514558,4.2936,209.55,209.52,7.44]
[1758692514757,8.96025026,209.59,209.51,49.3]
[1758692514960,4.2932,209.57,209.51,49.3]
[1758692515463,8.96025026,209.59,209.51,49.3]
[1758692517364,8.96025026,209.59,209.52,7.44]
[1758692517861,4.2934,209.56,209.51,41.86]
[1758692518364,4.2934,209.56,209.52,7.44]
[1758692518564,4.2934,209.56,209.51,41.86]
[1758692518766,4.2934,209.56,209.52,7.44]
[1758692518958,4.2934,209.56,209.51,41.86]
[1758692519361,4.2934,209.56,209.52,7.44]
[1758692519560,4.2934,209.56,209.51,41.86]
[1758692520266,11.8628,209.59,209.52,7.44]
[1758692520466,4.2928,209.59,209.54,1.39025026]
[1758692520669,4.2928,209.59,209.55,7.44]
[1758692520867,4.2928,209.59,209.54,1.39025026]
[1758692521462,4.2928,209.59,209.55,7.44]
[1758692522266,4.2922,209.61,209.55,7.44]
[1758692522657,4.2922,209.61,209.56,69.48]
[1758692522862,4.2926,209.6,209.53,7.44]
[1758692523065,1.39025026,209.62,209.55,7.44]
[1758692523366,7.57,209.61,209.55,7.44]
[1758692524669,7.57,209.59,209.55,7.44]
[1758692524971,7.57,209.61,209.55,7.44]
[1758692525872,11.863,209.58,209.55,7.44]
[1758692526069,7.57,209.58,209.55,7.44]
[1758692526369,66.7638,209.63,209.48,4.65588658]
[1758692526370,7.57,209.56,209.49,7.44]
[1758692527674,11.8634,209.56,209.49,8.83025026]
[1758692528171,11.8634,209.56,209.52,7.44]
[1758692530169,7.57,209.55,209.52,7.44]
[1758692531771,11.8636,209.55,209.52,7.44]
[1758692531975,7.57,209.55,209.52,7.44]
[1758692532372,7.57,209.55,209.49,1.39025026]
[1758692532668,7.57,209.59,209.52,7.44]
[1758692533772,4.2929,209.58,209.52,7.44]
[1758692535971,4.2929,209.58,209.53,1.39025026]
[1758692536277,12.2223,209.61,209.54,7.59]
[1758692537273,4.2923,209.61,209.52,7.59]
[1758692537468,4.2923,209.61,209.56,1.39025026]
[1758692537672,7.93,209.6,209.52,1.39025026]
[1758692538075,7.93,209.6,209.51,50.83]
[1758692538271,9.32025026,209.58,209.51,50.83]
[1758692538978,9.32025026,209.58,209.51,7.59]
[1758692539978,12.2234,209.56,209.5,7.59]
[1758692540178,7.93,209.56,209.5,7.59]
[1758692540380,12.224,209.53,209.5,7.59]
[1758692540977,4.294,209.53,209.5,7.59]
[1758692541671,12.2242,209.52,209.49,118.06]
[1758692541878,7.93,209.51,209.48,118.06]
[1758692542077,7.93,209.51,209.48,125.65]
[1758692543071,7.93,209.51,209.48,7.59]
[1758692543771,7.79,209.5,209.46,3.94374554]
[1758692543976,74.5939,209.5,209.43,7.69]
[1758692544379,1.19378932,209.49,209.43,7.69]
[1758692544578,68.19415026,209.5,209.43,7.69]
[1758692544880,8.98378932,209.49,209.43,7.69]
[1758692545174,68.19415026,209.5,209.42,118.06]
[1758692545175,5.4886895,209.48,209.42,118.06]
[1758692545388,1.1937895,209.47,209.43,7.69]
[1758692545677,8.9837895,209.47,209.43,7.69]
[1758692545882,7.79,209.47,209.43,7.69]
[1758692546574,4.2953,209.46,209.43,7.69]
[1758692547183,4.2953,209.46,209.43,125.75]
[1758692547678,4.2953,209.46,209.44,7.69]
[1758692547874,7.79,209.47,209.44,7.69]
[1758692548071,4.2949,209.49,209.43,118.06]
[1758692548278,1.19382256,209.48,209.45,7.69]
[1758692548479,7.79,209.47,209.43,125.75]
[1758692549380,7.79,209.47,209.44,7.69]
[1758692549581,12.0853,209.46,209.4,369.94025026]
[1758692549787,12.0853,209.46,209.42,7.69]
[1758692550287,7.79,209.46,209.41,118.06]
[1758692551988,7.79,209.46,209.42,7.69]
[1758692552884,7.79,209.48,209.44,7.69]
[1758692553280,7.79,209.48,209.43,118.06]
[1758692553585,4.2949,209.49,209.44,7.69]
[1758692554083,7.79,209.51,209.44,7.69]
[1758692554393,1.19382365,209.5,209.44,7.69]
[1758692554585,1.19382365,209.49,209.45,7.69]
[1758692554785,7.79,209.51,209.44,7.69]
[1758692554984,1.19382336,209.5,209.44,7.69]
[1758692555291,7.79,209.51,209.45,7.69]
[1758692555485,1.1937895,209.5,209.44,7.69]
[1758692555687,12.0842,209.52,209.44,7.69]
[1758692555887,1.1937895,209.51,209.44,7.69]
[1758692556091,1.1937895,209.5,209.44,7.69]
[1758692556284,12.0842,209.52,209.44,7.69]
[1758692557189,12.0842,209.52,209.45,7.69]
[1758692558592,4.2937,209.54,209.45,7.69]
[1758692558890,1.19361622,209.53,209.45,7.69]
[1758692559077,4.2937,209.54,209.45,7.69]
[1758692560987,7.79,209.57,209.47,7.69]
[1758692561190,7.79,209.57,209.49,7.69]
[1758692562181,7.79,209.57,209.5,118.04]
[1758692562182,7.79,209.55,209.5,118.04]
[1758692562493,7.79,209.56,209.5,118.04]
[1758692562694,4.2938,209.54,209.51,7.69]
[1758692562992,7.79,209.56,209.5,118.04]
[1758692563191,7.79,209.56,209.5,125.73]
[1758692569092,4.2932,209.57,209.51,7.69]
[1758692573196,100.4077,209.68,209.5,118.04]
[1758692573197,7.79,209.69,209.54,7.69]
[1758692573396,1.19288266,209.68,209.58,7.69]
[1758692573596,1.19288266,209.67,209.58,7.69]
[1758692573793,1.19288266,209.66,209.58,7.69]
[1758692575001,5.48428266,209.66,209.58,7.69]
[1758692575299,11.8821,209.62,209.58,7.69]
[1758692575491,7.59,209.61,209.59,117.96]
[1758692575694,7.59,209.6,209.59,117.96]
[1758692576100,7.59,209.6,209.57,117.96]
[1758692577503,7.59,209.6,209.57,125.73]
[1758692577902,7.59,209.58,209.51,7.77]
[1758692578198,74.369,209.58,209.52,117.96]
[1758692578404,4.2936,209.55,209.52,117.96]
[1758692578596,74.3746,209.56,209.47,7.77]
[1758692578797,74.3746,209.56,209.48,117.94]
[1758692579604,4.2939,209.53,209.48,117.94]
[1758692579804,4.2939,209.53,209.49,7.77]
[1758692580102,11.8839,209.53,209.49,7.77]
[1758692580295,4.2939,209.53,209.49,7.77]
[1758692580500,4.2944,209.51,209.44,7.77]
[1758692580697,4.2944,209.51,209.45,117.94]
[1758692581104,7.59,209.52,209.45,117.94]
[1758692581602,4.2937,209.54,209.46,7.77]
[1758692582396,7.59,209.56,209.46,7.77]
[1758692582601,4.2932,209.57,209.46,9.94333677]
[1758692582802,4.2932,209.57,209.47,7.77]
[1758692582997,11.8832,209.57,209.47,7.77]
[1758692584713,4.2926,209.6,209.49,7.77]
[1758692585007,1.19335454,209.59,209.49,7.77]
[1758692585203,4.2926,209.6,209.49,7.77]
[1758692585406,1.19334537,209.59,209.49,7.77]
[1758692585608,4.2926,209.6,209.49,7.77]
[1758692585804,1.19334537,209.59,209.49,7.77]
[1758692586011,13.07625454,209.58,209.49,7.77]
[1758692586198,11.8829,209.58,209.49,7.77]
[1758692588806,7.59,209.58,209.49,7.77]
[1758692589007,11.8824,209.61,209.51,7.77]
[1758692589207,1.19332307,209.6,209.53,7.77]
[1758692589504,1.19332209,209.59,209.53,7.77]
[1758692589812,11.8824,209.61,209.53,7.77]
[1758692590008,1.19332226,209.6,209.53,7.77]
[1758692590309,11.8824,209.61,209.53,7.77]
[1758692590611,1.1933131,209.6,209.53,7.77]
[1758692590808,11.8824,209.61,209.53,7.77]
[1758692591007,1.19327851,209.6,209.53,7.77]
[1758692591212,7.59,209.61,209.53,7.77]
[1758692591915,4.2912,209.67,209.56,7.77]
[1758692592112,1.1930705,209.66,209.56,7.77]
[1758692592414,4.2912,209.67,209.56,7.77]
[1758692592803,4.2912,209.67,209.58,7.77]
[1758692593011,4.2912,209.67,209.59,84.68]
[1758692594414,4.2912,209.67,209.6,7.38]
[1758692595112,7.54,209.66,209.6,7.38]
[1758692595308,11.8312,209.67,209.61,108.86]
[1758692597815,11.8312,209.67,209.59,7.38]
[1758692598009,11.8312,209.67,209.6,117.88]
[1758692599008,0.8304201,209.7,209.61,7.38]
[1758692599212,21.52953854,209.73,209.62,7.38]
[1758692599412,1.19274436,209.72,209.62,7.38]
[1758692599709,1.19274436,209.71,209.62,7.38]
[1758692599910,7.54,209.73,209.64,7.38]
[1758692600109,1.19270832,209.72,209.64,7.38]
[1758692600317,7.54,209.77,209.64,2.17333677]
[1758692600505,4.2894,209.75,209.65,7.38]
[1758692600709,1.19265592,209.74,209.67,7.38]
[1758692600911,1.19265592,209.73,209.67,7.38]
[1758692601112,4.2894,209.75,209.67,7.38]
[1758692601311,1.19258803,209.74,209.67,7.38]
[1758692601618,4.2894,209.75,209.67,7.38]
[1758692601813,1.19258803,209.74,209.67,7.38]
[1758692602011,1.19260493,209.73,209.67,7.38]
[1758692602212,4.2894,209.75,209.67,7.38]
[1758692602415,1.19258803,209.74,209.67,7.38]
[1758692602618,4.2894,209.75,209.67,7.38]
[1758692602920,8.73258803,209.74,209.67,7.38]
[1758692603113,1.19258803,209.73,209.67,7.38]
[1758692603308,7.54,209.74,209.67,7.38]
[1758692603514,1.19255675,209.73,209.67,7.38]
[1758692603714,7.54,209.74,209.67,7.38]
[1758692605023,11.8297,209.74,209.67,7.38]
[1758692606232,4.289,209.77,209.68,7.96]
[1758692606426,7.6,209.83,209.68,7.96]
[1758692606727,1.19232372,209.82,209.68,7.96]
[1758692606926,1.19232372,209.81,209.73,10.13333677]
[1758692607130,4.2879,209.83,209.75,7.96]
[1758692607321,7.6,209.84,209.75,7.96]
[1758692607528,11.8876,209.84,209.75,36.68]
[1758692607931,11.8876,209.84,209.76,7.96]
[1758692608436,7.6,209.87,209.76,7.96]
[1758692608623,1.19189891,209.86,209.76,7.96]
[1758692608822,4.2877,209.83,209.76,56.04]
[1758692609534,7.6,209.84,209.76,56.04]
[1758692610034,11.8876,209.84,209.76,56.04]
[1758692613839,11.8876,209.84,209.76,7.96]
[1758692614038,7.6,209.88,209.76,7.96]
[1758692614235,7.6,209.86,209.76,7.96]
[1758692614635,7.6,209.86,209.77,1.38627837]
[1758692615536,7.6,209.86,209.78,7.96]
[1758692615937,4.2874,209.85,209.78,7.96]
[1758692616336,4.2877,209.83,209.78,7.96]
[1758692616535,7.6,209.82,209.78,7.96]
[1758692616941,4.2877,209.83,209.77,7.96]
[1758692618541,7.6,209.85,209.77,7.96]
[1758692619644,4.2876,209.84,209.77,7.96]
[1758692620446,4.2876,209.84,209.78,1.38627837]
[1758692620641,66.6803,209.89,209.79,7.96]
[1758692620847,4.2871,209.87,209.8,1.38627837]
[1758692621054,4.2871,209.87,209.81,7.96]
[1758692621747,4.2865,209.89,209.83,7.96]
[1758692624448,4.2869,209.88,209.83,7.96]
[1758692624647,4.2869,209.88,209.82,7.96]
[1758692626147,4.2869,209.88,209.82,9.34627837]
[1758692627847,4.2861,209.91,209.86,1.38627837]
[1758692628050,11.8861,209.91,209.87,7.96]
[1758692628946,11.8865,209.9,209.83,1.38627837]
[1758692629250,11.8865,209.9,209.83,9.34627837]
[1758692630251,7.6,209.9,209.83,9.34627837]
[1758692630550,7.6,209.95,209.87,1.38627837]
[1758692630750,1.19154515,209.94,209.87,1.38627837]
[1758692631051,7.6,209.95,209.87,1.38627837]
[1758692631350,11.8854,209.95,209.88,7.96]
[1758692631546,7.6,210.0,209.88,7.96]
[1758692631851,7.6,209.98,209.91,7.96]
[1758692632046,7.6,209.98,209.92,1.38627837]
[1758692632245,7.6,209.98,209.91,7.96]
[1758692632446,4.2849,209.97,209.91,7.96]
[1758692632849,7.6,209.98,209.91,7.96]
[1758692633146,7.6,209.94,209.91,7.96]
[1758692633349,7.6,209.98,209.91,7.96]
[1758692633651,1.19130519,209.97,209.91,7.96]
[1758692633846,7.6,209.98,209.91,7.96]
[1758692634048,1.19129605,209.97,209.91,7.96]
[1758692634248,11.9053,209.95,209.91,7.96]
[1758692634550,7.62,209.95,209.91,7.96]
[1758692634750,7.62,209.95,209.89,1.38627837]
[1758692634751,7.62,209.95,209.9,7.54]
[1758692634940,11.9043,210.0,209.9,7.54]
[1758692635140,7.62,209.98,209.9,7.54]
[1758692635346,1.19122861,209.97,209.9,7.54]
[1758692635542,4.2852,209.96,209.9,7.54]
[1758692636648,7.62,209.98,209.9,7.54]
[1758692636846,1.19126382,209.97,209.9,7.54]
[1758692637047,1.19126382,209.96,209.9,7.54]
[1758692637246,4.2851,209.96,209.9,7.54]
[1758692637949,11.9047,209.98,209.9,7.54]
[1758692638147,1.19129582,209.97,209.9,7.54]
[1758692638342,1.19129582,209.96,209.9,7.54]
[1758692638546,7.62,209.98,209.9,7.54]
[1758692638744,1.19129663,209.97,209.9,7.54]
[1758692638950,1.19129663,209.96,209.9,7.54]
[1758692639152,7.62,209.94,209.87,1.38627837]
[1758692639352,1.19141786,209.93,209.87,1.38627837]
[1758692639547,7.62,209.94,209.87,1.38627837]
[1758692639548,7.62,209.94,209.87,8.92627837]
[1758692639848,4.2852,209.96,209.87,8.92627837]
[1758692640052,1.19137356,209.95,209.87,8.92627837]
[1758692640247,4.2852,209.96,209.87,5.67297837]
[1758692640448,1.191324,209.95,209.88,7.54]
[1758692640654,7.62,209.97,209.88,7.54]
[1758692640858,1.19123809,209.96,209.88,7.54]
[1758692641046,1.19123809,209.95,209.88,7.54]
[1758692641248,7.62,209.97,209.88,7.54]
[1758692641452,1.19124957,209.96,209.88,7.54]
[1758692641655,0.82914393,210.03,209.88,7.54]
[1758692641656,1.19125003,209.95,209.91,7.54]
[1758692641855,4.2845,209.99,209.91,7.54]